fUST/lending_fUST_20251218
["ID","MTS","AMOUNT","RATE_DAILY","PERIOD"]
[398964249,1766028645452,-500.0,0.00041095,120]
[398964250,1766028645462,-500.0,0.00041095,120]
[398964251,1766028645471,-500.0,0.00041095,120]
[398964252,1766028645480,-500.0,0.00041095,120]
[398964253,1766028645491,-500.0,0.00041095,120]
[398964254,1766028645500,-500.0,0.00041095,120]
[398964255,1766028645509,-500.0,0.00041095,2]
[398964256,1766028645518,-500.0,0.00041095,120]
[398964257,1766028645527,-500.0,0.00041095,120]
[398964258,1766028645536,-500.0,0.00041095,120]
[398964259,1766028645545,-500.0,0.00041095,120]
[398964260,1766028645555,-500.0,0.00041095,120]
[398964261,1766028645564,-500.0,0.00041095,120]
[398964262,1766028645573,-500.0,0.00041095,120]
[398964263,1766028645582,-500.0,0.00041095,120]
[398964264,1766028645591,-500.0,0.00041095,120]
[398964265,1766028645600,-500.0,0.00041095,120]
[398964266,1766028645610,-517.07312929,0.00041095,120]
[398964267,1766028645619,-500.0,0.00041095,120]
[398964268,1766028645628,-500.0,0.00041095,120]
[398964269,1766028645638,-521.519367,0.00041095,120]
[398964270,1766028645647,-603.79539539,0.00041095,120]
[398964271,1766028645656,-462.79793749,0.00041095,120]
[398964272,1766028645665,-500.0,0.00041095,120]
[398964273,1766028645674,-500.0,0.00041095,30]
[398964274,1766028645683,-500.0,0.00041095,120]
[398964275,1766028645692,-500.0,0.00041095,120]
[398964276,1766028645701,-500.0,0.00041095,120]
[398964277,1766028645710,-500.0,0.00041095,120]
[398964279,1766028645719,-500.0,0.00041095,120]
[398964280,1766028645728,-500.0,0.00041095,120]
[398964281,1766028645737,-500.0,0.00041095,120]
[398964282,1766028645747,-500.0,0.00041095,120]
[398964283,1766028645755,-500.0,0.00041095,120]
[398964284,1766028645765,-500.0,0.00041095,120]
[398964285,1766028645773,-500.0,0.00041095,120]
[398964286,1766028645783,-500.0,0.00041095,120]
[398964287,1766028645792,-500.0,0.00041095,120]
[398964288,1766028645801,-500.0,0.00041095,120]
[398964289,1766028645810,-500.0,0.00041095,120]
[398964290,1766028645819,-500.0,0.00041095,120]
[398964291,1766028645828,-500.0,0.00041095,120]
[398964292,1766028645837,-500.0,0.00041095,120]
[398964293,1766028645846,-500.0,0.00041095,120]
[398964294,1766028645858,-500.0,0.00041095,120]
[398964295,1766028645868,-500.0,0.00041095,120]
[398964296,1766028645877,-500.0,0.00041095,120]
[398964297,1766028645886,-291.31160639,0.00041095,120]
[398964298,1766028645895,-500.0,0.00041095,120]
[398964299,1766028645904,-500.0,0.00041095,120]
[398964300,1766028645913,-500.0,0.00041095,120]
[398964301,1766028645922,-500.0,0.00041095,120]
[398964302,1766028645931,-466.53157853,0.00041095,120]
[398964303,1766028645940,-500.0,0.00041095,120]
[398964304,1766028645949,-500.0,0.00041095,120]
[398964305,1766028645958,-500.0,0.00041095,120]
[398964306,1766028645967,-500.0,0.00041095,120]
[398964307,1766028645976,-500.0,0.00041095,120]
[398964308,1766028645988,-500.0,0.00041095,120]
[398964309,1766028645999,-500.0,0.00041095,120]
[398964310,1766028646009,-500.0,0.00041095,120]
[398964311,1766028646020,-500.0,0.00041095,120]
[398964312,1766028646030,-500.0,0.00041095,120]
[398964313,1766028646040,-500.0,0.00041095,120]
[398964314,1766028646050,-500.0,0.00041095,120]
[398964315,1766028646060,-500.0,0.00041095,120]
[398964316,1766028646070,-500.0,0.00041095,120]
[398964317,1766028646080,-500.0,0.00041095,120]
[398964318,1766028646090,-500.0,0.00041095,120]
[398964319,1766028646107,-500.0,0.00041095,120]
[398964320,1766028646116,-500.0,0.00041095,120]
[398964321,1766028646126,-500.0,0.00041095,120]
[398964322,1766028646136,-500.0,0.00041095,120]
[398964323,1766028646146,-500.0,0.00041095,120]
[398964324,1766028646155,-509.49189386,0.00041095,120]
[398964325,1766028646165,-500.0,0.00041095,120]
[398964326,1766028646174,-500.0,0.00041095,120]
[398964327,1766028646184,-500.0,0.00041095,120]
[398964328,1766028646193,-470.06332437,0.00041095,120]
[398964329,1766028646202,-500.0,0.00041095,120]
[398964330,1766028646211,-500.0,0.00041095,120]
[398964331,1766028646220,-500.0,0.00041095,120]
[398964332,1766028646232,-513.04260744,0.00041095,120]
[398964333,1766028646242,-500.0,0.00041095,120]
[398964334,1766028646251,-500.0,0.00041095,120]
[398964335,1766028646260,-500.0,0.00041095,120]
[398964336,1766028646270,-500.0,0.00041095,120]
[398964337,1766028646280,-500.0,0.00041095,120]
[398964338,1766028646289,-500.0,0.00041095,120]
[398964339,1766028646298,-500.0,0.00041095,120]
[398964340,1766028646308,-500.0,0.00041095,120]
[398964341,1766028646318,-500.0,0.00041095,120]
[398964342,1766028646327,-500.0,0.00041095,120]
[398964343,1766028646340,-500.0,0.00041095,120]
[398964344,1766028646359,-500.0,0.00041095,120]
[398964345,1766028646375,-500.0,0.00041095,120]
[398964346,1766028646385,-500.0,0.00041095,120]
[398964347,1766028646396,-500.0,0.00041095,120]
[398964348,1766028646407,-500.0,0.00041095,120]
[398964350,1766028646424,-501.36307393,0.00041095,120]
[398964352,1766028646445,-500.0,0.00041095,120]
[398964354,1766028646456,-500.0,0.00041095,120]
[398964356,1766028646467,-500.0,0.00041095,120]
[398964357,1766028646478,-500.0,0.00041095,120]
[398964358,1766028646488,-500.0,0.00041095,120]
[398964359,1766028646498,-500.0,0.00041095,120]
[398964360,1766028646507,-500.0,0.00041095,120]
[398964361,1766028646519,-500.0,0.00041095,120]
[398964362,1766028646528,-500.0,0.00041095,120]
[398964363,1766028646538,-500.0,0.00041095,120]
[398964364,1766028646549,-500.0,0.00041095,120]
[398964365,1766028646559,-500.0,0.00041095,120]
[398964366,1766028646569,-500.0,0.00041095,120]
[398964367,1766028646580,-500.0,0.00041095,120]
[398964368,1766028646590,-500.85399291,0.00041095,120]
[398964369,1766028646599,-500.0,0.00041095,120]
[398964370,1766028646609,-500.0,0.00041095,120]
[398964371,1766028646619,-500.0,0.00041095,120]
[398964372,1766028646628,-500.0,0.00041095,120]
[398964373,1766028646638,-500.0,0.00041095,120]
[398964374,1766028646647,-500.0,0.00041095,120]
[398964375,1766028646657,-500.0,0.00041095,120]
[398964376,1766028646667,-500.0,0.00041095,120]
[398964377,1766028646676,-354.46695813,0.00041095,120]
[398964378,1766028646685,-500.0,0.00041095,120]
[398964379,1766028646694,-500.0,0.00041095,120]
[398964380,1766028646704,-500.0,0.00041095,120]
[398964381,1766028646713,-500.0,0.00041095,120]
[398964382,1766028646722,-500.0,0.00041095,120]
[398964383,1766028646732,-500.0,0.00041095,30]
[398964384,1766028646741,-500.0,0.00041095,120]
[398964385,1766028646751,-500.0,0.00041095,21]
[398964386,1766028646760,-500.0,0.00041095,120]
[398964387,1766028646769,-500.0,0.00041095,120]
[398964388,1766028646779,-500.0,0.00041095,120]
[398964389,1766028646788,-500.0,0.00041095,120]
[398964390,1766028646797,-500.0,0.00041095,120]
[398964391,1766028646806,-500.0,0.00041095,120]
[398964392,1766028646815,-500.0,0.00041095,120]
[398964393,1766028646824,-500.0,0.00041095,120]
[398964394,1766028646835,-500.0,0.00041095,120]
[398964395,1766028646844,-421.95771449,0.00041095,120]
[398964396,1766028646854,-500.0,0.00041095,120]
[398964397,1766028646864,-500.0,0.00041095,30]
[398964398,1766028646874,-276.73483116,0.00041095,120]
[398964399,1766028646884,-601.43,0.00041095,120]
[398964400,1766028646894,-500.0,0.00041095,120]
[398964401,1766028646904,-500.0,0.00041095,120]
[398964402,1766028646915,-500.0,0.00041095,120]
[398964403,1766028646927,-500.0,0.00041095,120]
[398964404,1766028646938,-500.0,0.00041095,120]
[398964405,1766028646948,-500.0,0.00041095,120]
[398964406,1766028646959,-500.0,0.00041095,120]
[398964407,1766028646969,-500.0,0.00041095,120]
[398964408,1766028646980,-500.0,0.00041095,120]
[398964409,1766028646993,-500.0,0.00041095,120]
[398964410,1766028647004,-500.0,0.00041095,120]
[398964411,1766028647016,-500.0,0.00041095,120]
[398964412,1766028647027,-500.0,0.00041095,120]
[398964413,1766028647038,-500.0,0.00041095,120]
[398964414,1766028647048,-500.0,0.00041095,120]
[398964415,1766028647059,-500.0,0.00041095,120]
[398964416,1766028647068,-500.0,0.00041095,120]
[398964417,1766028647078,-500.0,0.00041095,120]
[398964418,1766028647089,-500.0,0.00041095,120]
[398964419,1766028647099,-500.0,0.00041095,120]
[398964420,1766028647108,-500.0,0.00041095,120]
[398964421,1766028647118,-255.85995631,0.00041095,120]
[398964422,1766028647234,-244.14004369,0.00041095,120]
[398964423,1766028647244,-500.0,0.00041095,120]
[398964424,1766028647253,-500.0,0.00041095,120]
[398964425,1766028647263,-298.97806949,0.00041095,120]
[398964426,1766028647273,-500.0,0.00041095,120]
[398964427,1766028647283,-500.0,0.00041095,120]
[398964428,1766028647293,-500.0,0.00041095,120]
[398964429,1766028647304,-500.0,0.00041095,120]
[398964430,1766028647313,-500.0,0.00041095,120]
[398964431,1766028647322,-500.0,0.00041095,3]
[398964432,1766028647335,-500.0,0.00041095,120]
[398964433,1766028647344,-500.0,0.00041095,120]
[398964434,1766028647354,-500.0,0.00041095,120]
[398964435,1766028647363,-500.0,0.00041095,120]
[398964436,1766028647372,-500.0,0.00041095,120]
[398964437,1766028647382,-500.0,0.00041095,120]
[398964438,1766028647391,-500.0,0.00041095,120]
[398964439,1766028647496,-500.0,0.00041095,120]
[398964440,1766028647507,-500.0,0.00041095,120]
[398964441,1766028647517,-500.0,0.00041095,120]
[398964442,1766028647527,-500.0,0.00041095,120]
[398964443,1766028647536,-500.0,0.00041095,120]
[398964444,1766028647545,-500.0,0.00041095,120]
[398964445,1766028647554,-500.0,0.00041095,120]
[398964446,1766028647564,-500.0,0.00041095,120]
[398964447,1766028647573,-500.0,0.00041095,120]
[398964448,1766028647583,-500.0,0.00041095,120]
[398964449,1766028647592,-458.19746832,0.00041095,120]
[398964451,1766029594146,-157.729808,0.00013699,2]
[398964452,1766029594166,-135.44608998,0.00022493,7]
[398964453,1766029595102,4511.3345926,0.00013,2]
[398964454,1766029650910,150.0,7.031e-05,2]
[398964455,1766029651318,150.0,7.365e-05,2]
[398964456,1766029651745,150.0,7.7e-05,2]
[398964457,1766029652193,150.0,8.035e-05,2]
[398964458,1766029652615,173.95,8.37e-05,2]
[398964459,1766029653040,208.75,8.704e-05,2]
[398964460,1766029653447,243.54,9.039e-05,2]
[398964461,1766029653846,278.33,9.374e-05,2]
[398964462,1766029654269,313.12,9.709e-05,2]
[398964463,1766029655140,347.91,0.00010044,2]
[398964464,1766029722875,150.0,7.037e-05,2]
[398964465,1766029723311,150.0,7.372e-05,2]
[398964466,1766029723757,150.0,7.707e-05,2]
[398964534,1766029838438,-31.55391002,0.00022493,7]
[398964536,1766029838448,-247.5535708,0.00023171,2]
[398964538,1766029838459,-302.0,0.00023171,2]
[398964540,1766029838471,-232.4464292,0.00023171,2]
[398964542,1766029838480,-150.0,0.00023171,2]
[398964544,1766029838490,-177.0,0.00025171,2]
[398964546,1766029838499,-204.0,0.00027171,2]
[398964548,1766029838508,-501.03518349,0.00027551,2]
[398964550,1766029838518,-155.3458284,0.00029171,2]
[398964552,1766029838527,-157.729808,0.00031311,2]
[398964554,1766029838536,-500.0,0.00032877,8]
[398964555,1766029838546,-186.65918,0.0003455,3]
[398964557,1766029838555,-365.45566199,0.00035402,2]
[398964559,1766029838563,-1000.0,0.00036164,120]
[398964560,1766029838576,-162.90244615,0.00036426,120]
[398964561,1766029838585,-236.90971258,0.00036526,2]
[398964562,1766029838595,-1200.0,0.00036711,3]
[398964563,1766029838605,-1000.0,0.00036712,120]
[398964564,1766029838614,-301.0,0.00037106,3]
[398964565,1766029838623,-158.71839978,0.00037106,2]
[398964566,1766029838635,-141.28160022,0.00037106,2]
[398964567,1766029838644,-302.0,0.00037106,3]
[398964568,1766029838653,-167.48574849,0.0003726,120]
[398964569,1766029838856,-832.51425151,0.0003726,120]
[398964570,1766029838870,-1958.44685314,0.00037355,2]
[398964571,1766029838879,-500.0,0.00037499,15]
[398964572,1766029838889,-500.0,0.00037499,15]
[398964573,1766029838899,-500.0,0.00037499,15]
[398964574,1766029838908,-500.0,0.00037499,15]
[398964575,1766029838918,-222.22467879,0.00037499,15]
[398964576,1766029838928,-500.0,0.00037499,15]
[398964577,1766029838949,-500.0,0.00037499,15]
[398964578,1766029838973,-580.84831568,0.00037499,15]
[398964579,1766029838982,-515.88642388,0.00037499,15]
[398964580,1766029838991,-488.78058472,0.00037499,15]
[398964581,1766029839001,-500.0,0.00037499,15]
[398964582,1766029839010,-500.0,0.00037499,15]
[398964583,1766029839020,-500.0,0.00037499,15]
[398964584,1766029839030,-10000.0,0.000375,120]
[398964585,1766029839039,-1000.0,0.00037808,120]
[398964586,1766029839048,-341.69583585,0.00038028,2]
[398964587,1766029839057,-1100.0,0.00038082,120]
[398964588,1766029839066,-743.57381979,0.00038112,2]
[398964589,1766029839075,-1000.0,0.00038356,120]
[398964590,1766029839084,-1100.0,0.00038356,120]
[398964591,1766029839093,-708.30492411,0.00038639,2]
[398964592,1766029839102,-737.0,0.00038688,2]
[398964593,1766029839114,-737.0,0.00038763,120]
[398964594,1766029839123,-1000.0,0.00038904,120]
[398964595,1766029839133,-737.0,0.00039098,7]
[398964596,1766029839144,-4110.0,0.00039185,120]
[398964597,1766029839154,-19350.08818091,0.00039185,30]
[398964598,1766029839167,-2862.58748994,0.00039185,30]
[398964599,1766029839176,-2719.56855826,0.00039256,2]
[398964600,1766029839188,-17280.43144174,0.00039256,2]
[398964601,1766029839197,-735.0,0.00039323,7]
[398964602,1766029839206,-735.0,0.00039443,120]
[398964603,1766029839215,-1000.0,0.00039452,120]
[398964604,1766029839224,-755.31282149,0.00039862,2]
[398964605,1766029839234,-230.472,0.00039862,56]
[398964606,1766029839243,-300.24922872,0.00039913,2]
[398964607,1766029839252,-1000.0,0.0004,120]
[398964608,1766029839261,-769.81760167,0.00040011,3]
[398964609,1766029839270,-735.0,0.00040063,2]
[398964610,1766029839279,-735.0,0.00040206,2]
[398964611,1766029839288,-734.0,0.00040375,2]
[398964612,1766029839297,-734.0,0.00040502,7]
[398964613,1766029839307,-1000.0,0.00040548,120]
[398964614,1766029839316,-735.0,0.00040548,2]
[398964615,1766029839325,-606.36062193,0.00040625,2]
[398964616,1766029839334,-734.0,0.00040644,120]
[398964617,1766029839343,-734.0,0.00040738,120]
[398964618,1766029839352,-735.0,0.00040745,2]
[398964619,1766029839361,-734.0,0.00040766,2]
[398964620,1766029839371,-734.0,0.00040934,2]
[398964621,1766029839380,-497.04009314,0.00041069,31]
[398964622,1766029839391,-234.79082677,0.00041069,31]
[398964623,1766029839401,-534.143421,0.00041069,31]
[398964624,1766029839411,-514.68039946,0.00041069,7]
[398964625,1766029839420,-1000.0,0.0004107,2]
[398964626,1766029839429,-1000.0,0.0004107,2]
[398964627,1766029839438,-1000.0,0.0004107,2]
[398964628,1766029839448,-1000.0,0.0004107,2]
[398964629,1766029839458,-1000.0,0.0004107,2]
[398964630,1766029839470,-1000.0,0.0004107,2]
[398964631,1766029839480,-1000.0,0.0004107,2]
[398964632,1766029839491,-1000.0,0.0004107,2]
[398964633,1766029839501,-1000.0,0.0004107,2]
[398964634,1766029839510,-1000.0,0.0004107,2]
[398964635,1766029839519,-1000.0,0.0004107,2]
[398964636,1766029839528,-1000.0,0.0004107,2]
[398964637,1766029839538,-1000.0,0.0004107,2]
[398964638,1766029839547,-1000.0,0.0004107,2]
[398964639,1766029839557,-1000.0,0.0004107,2]
[398964640,1766029839566,-1000.0,0.0004107,2]
[398964641,1766029839575,-1000.0,0.0004107,2]
[398964642,1766029839585,-1000.0,0.0004107,2]
[398964643,1766029839595,-1000.0,0.0004107,2]
[398964644,1766029839604,-1000.0,0.0004107,2]
[398964645,1766029839614,-734.0,0.00041072,2]
[398964646,1766029839626,-3000.0,0.00041094,120]
[398964647,1766029839636,-250.0,0.00041094,120]
[398964648,1766029839646,-414.0,0.00041094,120]
[398964649,1766029839657,-3000.0,0.00041094,120]
[398964650,1766029839666,-250.0,0.00041094,120]
[398964651,1766029839676,-429.318,0.00041094,120]
[398964652,1766029839686,-2133.33161607,0.00041094,120]
[398964653,1766029839694,-250.0,0.00041094,120]
[398964654,1766029839704,-445.202766,0.00041094,120]
[398964655,1766029839714,-250.0,0.00041094,120]
[398964656,1766029839724,-433.86490312,0.00041094,120]
[398964657,1766029839733,-2000.0,0.00041094,120]
[398964658,1766029839742,-250.0,0.00041094,120]
[398964659,1766029839752,-250.0,0.00041094,120]
[398964660,1766029839761,-151.0,0.00041094,3]
[398964661,1766029839770,-2074.0,0.00041094,120]
[398964662,1766029839788,-250.0,0.00041094,120]
[398964663,1766029839798,-307.04479461,0.00041094,3]
[398964664,1766029839807,-250.0,0.00041094,120]
[398964665,1766029839816,-2150.738,0.00041094,120]
[398964666,1766029839825,-258.45864367,0.00041094,120]
[398964667,1766029839835,-250.0,0.00041094,120]
[398964668,1766029839844,-500.0,0.00041094,120]
[398964669,1766029839853,-2230.315306,0.00041094,120]
[398964670,1766029839864,-250.0,0.00041094,120]
[398964671,1766029839873,-531.96356344,0.00041094,120]
[398964672,1766029839882,-739.83619475,0.00041094,120]
[398964673,1766029839892,-250.0,0.00041094,120]
[398964674,1766029839902,-156.587,0.00041094,120]
[398964675,1766029839911,-250.0,0.00041094,120]
[398964676,1766029839921,-253.95173217,0.00041094,120]
[398964677,1766029839931,-200.0,0.00041094,120]
[398964678,1766029839942,-200.0,0.00041094,120]
[398964679,1766029839951,-200.0,0.00041094,120]
[398964680,1766029839961,-167.05107143,0.00041094,120]
[398964681,1766029839971,-500.0,0.00041095,120]
[398964682,1766029839980,-500.0,0.00041095,120]
[398964683,1766029839990,-500.0,0.00041095,120]
[398964684,1766029840001,-500.0,0.00041095,120]
[398964685,1766029840173,-408.42540127,0.00041095,120]
[398964686,1766029840189,-91.57459873,0.00041095,120]
[398964687,1766029840198,-500.0,0.00041095,120]
[398964688,1766029840207,-500.0,0.00041095,120]
[398964689,1766029840216,-500.0,0.00041095,120]
[398964690,1766029840225,-500.0,0.00041095,120]
[398964692,1766029840234,-500.0,0.00041095,120]
[398964694,1766029840244,-500.0,0.00041095,120]
[398964695,1766029840253,-503.36,0.00041095,120]
[398964696,1766029840262,-500.0,0.00041095,120]
[398964697,1766029840271,-500.0,0.00041095,120]
[398964698,1766029840280,-500.0,0.00041095,120]
[398964699,1766029840290,-500.0,0.00041095,120]
[398964700,1766029840299,-500.0,0.00041095,2]
[398964701,1766029840308,-500.0,0.00041095,120]
[398964702,1766029840317,-500.0,0.00041095,120]
[398964703,1766029840326,-500.0,0.00041095,120]
[398964704,1766029840335,-500.0,0.00041095,120]
[398964706,1766029840344,-500.0,0.00041095,120]
[398964707,1766029840353,-500.0,0.00041095,120]
[398964708,1766029840362,-500.0,0.00041095,120]
[398964709,1766029840371,-500.0,0.00041095,30]
[398964710,1766029840380,-500.0,0.00041095,120]
[398964712,1766029840391,-500.0,0.00041095,120]
[398964713,1766029840401,-500.0,0.00041095,120]
[398964714,1766029840409,-500.0,0.00041095,120]
[398964715,1766029840418,-535.13549441,0.00041095,120]
[398964716,1766029840427,-251.94993086,0.00041095,120]
[398964717,1766029840439,-248.05006914,0.00041095,120]
[398964718,1766029840448,-500.0,0.00041095,15]
[398964719,1766029840457,-500.0,0.00041095,120]
[398964720,1766029840466,-500.0,0.00041095,120]
[398964721,1766029840475,-500.0,0.00041095,120]
[398964722,1766029840484,-500.0,0.00041095,120]
[398964723,1766029840493,-500.0,0.00041095,120]
[398964725,1766029840502,-500.0,0.00041095,120]
[398964727,1766029840510,-500.0,0.00041095,120]
[398964729,1766029840519,-500.0,0.00041095,120]
[398964731,1766029840528,-500.0,0.00041095,120]
[398964733,1766029840539,-500.0,0.00041095,120]
[398964735,1766029840547,-500.0,0.00041095,120]
[398964737,1766029840556,-500.0,0.00041095,30]
[398964739,1766029840565,-500.0,0.00041095,120]
[398964741,1766029840575,-500.0,0.00041095,120]
[398964743,1766029840583,-500.0,0.00041095,120]
[398964745,1766029840592,-500.0,0.00041095,120]
[398964747,1766029840601,-500.0,0.00041095,120]
[398964749,1766029840610,-500.0,0.00041095,120]
[398964751,1766029840618,-500.0,0.00041095,120]
[398964753,1766029840628,-500.0,0.00041095,120]
[398964755,1766029840637,-500.0,0.00041095,120]
[398964757,1766029840646,-257.66555846,0.00041095,120]
[398964759,1766029840662,-242.33444154,0.00041095,120]
[398964761,1766029840671,-500.0,0.00041095,120]
[398964763,1766029840681,-544.73,0.00041095,120]
[398964765,1766029840690,-126.97215988,0.00041095,120]
[398964768,1766029840701,-373.02784012,0.00041095,120]
[398964770,1766029840710,-284.18949954,0.00041095,120]
[398964772,1766029840721,-215.81050046,0.00041095,120]
[398964774,1766029840730,-104.99719333,0.00041095,120]
[398964776,1766029840741,-471.17674034,0.00041095,120]
[398964778,1766029840750,-500.0,0.00041095,120]
[398964780,1766029840759,-500.0,0.00041095,120]
[398964782,1766029840768,-500.0,0.00041095,120]
[398964784,1766029840777,-76.8042923,0.00041095,120]
[398964786,1766029840789,-423.1957077,0.00041095,120]
[398964788,1766029840798,-500.0,0.00041095,120]
[398964790,1766029840807,-500.0,0.00041095,120]
[398964792,1766029840816,-500.0,0.00041095,120]
[398964794,1766029840825,-500.0,0.00041095,30]
[398964796,1766029840834,-500.0,0.00041095,120]
[398964798,1766029840843,-500.0,0.00041095,120]
[398964800,1766029840853,-516.84,0.00041095,120]
[398964802,1766029840865,-500.0,0.00041095,120]
[398964804,1766029840874,-500.0,0.00041095,120]
[398964806,1766029840883,-500.0,0.00041095,120]
[398964808,1766029840892,-500.0,0.00041095,120]
[398964810,1766029840903,-500.0,0.00041095,120]
[398964812,1766029840912,-500.0,0.00041095,120]
[398964814,1766029840920,-500.0,0.00041095,5]
[398964816,1766029840930,-500.0,0.00041095,120]
[398964818,1766029840939,-500.0,0.00041095,120]
[398964820,1766029840948,-500.0,0.00041095,120]
[398964822,1766029840957,-500.0,0.00041095,120]
[398964824,1766029840966,-500.0,0.00041095,120]
[398964826,1766029840975,-500.0,0.00041095,120]
[398964828,1766029840984,-500.0,0.00041095,120]
[398964830,1766029840993,-500.0,0.00041095,120]
[398964832,1766029841001,-500.0,0.00041095,120]
[398964834,1766029841010,-500.0,0.00041095,120]
[398964836,1766029841020,-500.50856553,0.00041095,120]
[398964838,1766029841029,-500.0,0.00041095,120]
[398964840,1766029841039,-500.0,0.00041095,120]
[398964842,1766029841048,-500.0,0.00041095,120]
[398964844,1766029841057,-500.0,0.00041095,120]
[398964846,1766029841067,-500.0,0.00041095,120]
[398964848,1766029841075,-500.0,0.00041095,120]
[398964849,1766029841084,-500.0,0.00041095,120]
[398964851,1766029841093,-500.0,0.00041095,120]
[398964853,1766029841102,-500.0,0.00041095,120]
[398964855,1766029841110,-305.97625437,0.00041095,120]
[398964857,1766029841119,-500.0,0.00041095,120]
[398964859,1766029841129,-500.0,0.00041095,120]
[398964861,1766029841138,-500.0,0.00041095,120]
[398964863,1766029841147,-500.0,0.00041095,120]
[398964865,1766029841156,-500.0,0.00041095,120]
[398964867,1766029841165,-257.53810943,0.00041095,120]
[398964869,1766029841174,-500.0,0.00041095,120]
[398964871,1766029841183,-500.0,0.00041095,120]
[398964873,1766029841192,-500.0,0.00041095,120]
[398964875,1766029841201,-500.0,0.00041095,20]
[398964877,1766029841210,-500.0,0.00041095,120]
[398964879,1766029841219,-500.0,0.00041095,120]
[398964881,1766029841227,-500.0,0.00041095,120]
[398964883,1766029841237,-500.0,0.00041095,120]
[398964885,1766029841246,-500.0,0.00041095,120]
[398964887,1766029841255,-500.0,0.00041095,120]
[398964889,1766029841264,-500.0,0.00041095,120]
[398964891,1766029841273,-500.0,0.00041095,120]
[398964893,1766029841282,-500.0,0.00041095,120]
[398964895,1766029841293,-500.0,0.00041095,120]
[398964897,1766029841302,-500.0,0.00041095,120]
[398964899,1766029841311,-500.0,0.00041095,120]
[398964901,1766029841320,-500.0,0.00041095,120]
[398964903,1766029841329,-500.89,0.00041095,120]
[398964905,1766029841339,-544.7,0.00041095,120]
[398964907,1766029841348,-500.0,0.00041095,120]
[398964909,1766029841357,-500.0,0.00041095,120]
[398964911,1766029841366,-500.0,0.00041095,120]
[398964914,1766029841375,-500.0,0.00041095,120]
[398964915,1766029841384,-500.0,0.00041095,120]
[398964918,1766029841394,-500.0,0.00041095,120]
[398964920,1766029841403,-500.0,0.00041095,120]
[398964922,1766029841415,-500.0,0.00041095,120]
[398964924,1766029841427,-500.0,0.00041095,120]
[398964927,1766029841440,-500.0,0.00041095,30]
[398964929,1766029841453,-500.0,0.00041095,120]
[398964931,1766029841464,-500.0,0.00041095,120]
[398964934,1766029841475,-547.86,0.00041095,120]
[398964936,1766029841484,-500.0,0.00041095,120]
[398964938,1766029841496,-500.0,0.00041095,120]
[398964940,1766029841507,-500.0,0.00041095,120]
[398964942,1766029841519,-500.0,0.00041095,120]
[398964945,1766029841531,-500.0,0.00041095,120]
[398964947,1766029841542,-500.0,0.00041095,120]
[398964949,1766029841554,-500.0,0.00041095,120]
[398964951,1766029841566,-500.0,0.00041095,120]
[398964953,1766029841577,-500.0,0.00041095,120]
[398964956,1766029841589,-500.0,0.00041095,120]